[Event "Early-Titled-Tuesday-Blitz-September-12-2023"]
[Site "Chess.com"]
[Date "2023.09.12"]
[Round "6"]
[White "DefiantChair"]
[Black "bazar-wokzal"]
[Result "0-1"]
[WhiteElo "2672"]
[BlackElo "2547"]
[TimeControl "180+1"]
[EndTime "9:07:17 PDT"]
[Termination "bazar-wokzal won on time"]

1. e4 {[%clk 0:03:00.9]} 1... Nc6 {[%clk 0:02:58.1]} 2. Nf3 {[%clk 0:03:00.8]}
2... d5 {[%clk 0:02:58.1]} 3. exd5 {[%clk 0:02:58.8]} 3... Qxd5 {[%clk 0:02:59]}
4. Nc3 {[%clk 0:02:59]} 4... Qa5 {[%clk 0:02:58.9]} 5. d4 {[%clk 0:02:59.6]}
5... Bg4 {[%clk 0:02:58.3]} 6. Bc4 {[%clk 0:02:49.3]} 6... O-O-O {[%clk
0:02:58.1]} 7. Be3 {[%clk 0:02:46.8]} 7... Nf6 {[%clk 0:02:49]} 8. h3 {[%clk
0:02:40.9]} 8... Bxf3 {[%clk 0:02:46]} 9. Qxf3 {[%clk 0:02:40.6]} 9... e5 {[%clk
0:02:46.3]} 10. d5 {[%clk 0:02:18.6]} 10... Nd4 {[%clk 0:02:40.8]} 11. Qd1
{[%clk 0:01:55.3]} 11... Bb4 {[%clk 0:02:34.8]} 12. O-O {[%clk 0:01:32.7]} 12...
Bxc3 {[%clk 0:02:28.5]} 13. bxc3 {[%clk 0:01:33.6]} 13... Qxc3 {[%clk
0:02:28.7]} 14. Bb3 {[%clk 0:01:33.9]} 14... Nxb3 {[%clk 0:02:24.9]} 15. axb3
{[%clk 0:01:34.8]} 15... Rxd5 {[%clk 0:02:24.5]} 16. Rxa7 {[%clk 0:01:22.3]}
16... Rxd1 {[%clk 0:02:17.5]} 17. Ra8+ {[%clk 0:01:22.2]} 17... Kd7 {[%clk
0:02:06.9]} 18. Rxd1+ {[%clk 0:01:22.9]} 18... Ke6 {[%clk 0:02:07.2]} 19. Rxh8
{[%clk 0:01:23.4]} 19... Qxc2 {[%clk 0:01:53.4]} 20. Rc1 {[%clk 0:01:23.5]}
20... Qxb3 {[%clk 0:01:52.2]} 21. Rxc7 {[%clk 0:01:22.8]} 21... Nd5 {[%clk
0:01:46.8]} 22. Re8+ {[%clk 0:00:59.3]} 22... Kf6 {[%clk 0:01:45.3]} 23. Rd7
{[%clk 0:00:49.3]} 23... Nxe3 {[%clk 0:01:42.5]} 24. fxe3 {[%clk 0:00:49]} 24...
Qxe3+ {[%clk 0:01:42.5]} 25. Kh2 {[%clk 0:00:49.2]} 25... Qf4+ {[%clk
0:01:35.4]} 26. Kh1 {[%clk 0:00:49.3]} 26... b5 {[%clk 0:01:28.4]} 27. Ree7
{[%clk 0:00:48.8]} 27... Kg6 {[%clk 0:01:26.1]} 28. Rb7 {[%clk 0:00:45.6]} 28...
b4 {[%clk 0:01:26.1]} 29. Rb6+ {[%clk 0:00:45.4]} 29... f6 {[%clk 0:01:23.3]}
30. Rbb7 {[%clk 0:00:45.7]} 30... Kf5 {[%clk 0:01:18.5]} 31. Rxg7 {[%clk
0:00:34]} 31... Qc1+ {[%clk 0:00:50.9]} 32. Kh2 {[%clk 0:00:33.9]} 32... Qf4+
{[%clk 0:00:51.5]} 33. Kg1 {[%clk 0:00:33.7]} 33... Qe3+ {[%clk 0:00:49.8]} 34.
Kh2 {[%clk 0:00:31.1]} 34... b3 {[%clk 0:00:42.7]} 35. Rg3 {[%clk 0:00:15.9]}
35... Qf4 {[%clk 0:00:41.2]} 36. Rxb3 {[%clk 0:00:15.6]} 36... e4 {[%clk
0:00:41]} 37. Kg1 {[%clk 0:00:15.9]} 37... h5 {[%clk 0:00:38.6]} 38. Rb5+ {[%clk
0:00:14.5]} 38... Ke6 {[%clk 0:00:38.6]} 39. Rbb3 {[%clk 0:00:09]} 39... h4
{[%clk 0:00:38]} 40. Rge3 {[%clk 0:00:08]} 40... f5 {[%clk 0:00:38.2]} 41. Re1
{[%clk 0:00:08.1]} 41... Kf6 {[%clk 0:00:38.1]} 42. Kh1 {[%clk 0:00:05.5]} 42...
Kg5 {[%clk 0:00:37.9]} 43. Rb5 {[%clk 0:00:05.5]} 43... Kg6 {[%clk 0:00:36]} 44.
Rb6+ {[%clk 0:00:05.7]} 44... Kg5 {[%clk 0:00:35.9]} 45. Rbb1 {[%clk 0:00:06.6]}
45... Qd2 {[%clk 0:00:34.6]} 46. Rf1 {[%clk 0:00:07.5]} 46... e3 {[%clk
0:00:34.5]} 47. Rb5 {[%clk 0:00:06.6]} 47... Qd3 {[%clk 0:00:34.1]} 48. Rbb1
{[%clk 0:00:03.9]} 48... e2 {[%clk 0:00:32.9]} 49. Rfe1 {[%clk 0:00:04.5]} 49...
Qd2 {[%clk 0:00:33.1]} 50. Kg1 {[%clk 0:00:04.6]} 50... Qe3+ {[%clk 0:00:33.4]}
51. Kh2 {[%clk 0:00:05]} 51... Qf2 {[%clk 0:00:30.9]} 52. Kh1 {[%clk 0:00:04.3]}
52... f4 {[%clk 0:00:30.4]} 53. Rb5+ {[%clk 0:00:04]} 53... Kg6 {[%clk
0:00:30.4]} 54. Rbb1 {[%clk 0:00:04]} 54... f3 {[%clk 0:00:30.3]} 55. Rg1 {[%clk
0:00:04.3]} 55... Kf5 {[%clk 0:00:29]} 56. gxf3 {[%clk 0:00:04.4]} 56... Qxf3+
{[%clk 0:00:28.3]} 57. Kh2 {[%clk 0:00:05]} 57... Qf4+ {[%clk 0:00:26.7]} 0-1

[Event "Early-Titled-Tuesday-Blitz-September-12-2023"]
[Site "Chess.com"]
[Date "2023.09.12"]
[Round "6"]
[White "BatboldNyamsuren0919"]
[Black "MateusViageiro"]
[Result "1-0"]
[WhiteElo "2486"]
[BlackElo "2141"]
[TimeControl "180+1"]
[EndTime "9:07:20 PDT"]
[Termination "BatboldNyamsuren0919 won on time"]

1. Nf3 {[%clk 0:03:00.9]} 1... Nf6 {[%clk 0:02:59.6]} 2. d4 {[%clk 0:02:56.1]}
2... e6 {[%clk 0:02:59.9]} 3. Bg5 {[%clk 0:02:55.1]} 3... b6 {[%clk 0:03:00.1]}
4. Nbd2 {[%clk 0:02:54.4]} 4... Bb7 {[%clk 0:03:00.1]} 5. e4 {[%clk 0:02:53.4]}
5... Be7 {[%clk 0:03:00]} 6. Bd3 {[%clk 0:02:53.2]} 6... c5 {[%clk 0:02:58.7]}
7. c3 {[%clk 0:02:52.5]} 7... cxd4 {[%clk 0:02:57.5]} 8. cxd4 {[%clk 0:02:53.4]}
8... Nc6 {[%clk 0:02:56.5]} 9. O-O {[%clk 0:02:52.6]} 9... h6 {[%clk 0:02:55.9]}
10. Bh4 {[%clk 0:02:52.1]} 10... O-O {[%clk 0:02:54.7]} 11. Rc1 {[%clk
0:02:51.8]} 11... Rc8 {[%clk 0:02:49.7]} 12. Bb1 {[%clk 0:02:50.9]} 12... d5
{[%clk 0:02:41]} 13. e5 {[%clk 0:02:48.3]} 13... Nd7 {[%clk 0:02:34.8]} 14. Qc2
{[%clk 0:02:44.6]} 14... g6 {[%clk 0:02:33.9]} 15. Bxe7 {[%clk 0:02:44]} 15...
Nxe7 {[%clk 0:02:32.5]} 16. Qa4 {[%clk 0:02:41.3]} 16... a6 {[%clk 0:02:29.7]}
17. h4 {[%clk 0:02:33.2]} 17... b5 {[%clk 0:02:27.7]} 18. Qa3 {[%clk 0:02:31.9]}
18... h5 {[%clk 0:02:26.4]} 19. Ng5 {[%clk 0:02:24]} 19... Nb6 {[%clk 0:02:08]}
20. b3 {[%clk 0:02:20.4]} 20... Qd7 {[%clk 0:02:04.1]} 21. Ndf3 {[%clk
0:02:13.1]} 21... Rxc1 {[%clk 0:02:02.1]} 22. Rxc1 {[%clk 0:02:11.8]} 22... Rc8
{[%clk 0:02:02.5]} 23. Rxc8+ {[%clk 0:02:11.2]} 23... Nbxc8 {[%clk 0:02:00.3]}
24. Qc5 {[%clk 0:02:05.3]} 24... Qc6 {[%clk 0:01:57.9]} 25. a3 {[%clk
0:01:50.1]} 25... Kg7 {[%clk 0:01:56.7]} 26. b4 {[%clk 0:01:48.9]} 26... Qd7
{[%clk 0:01:43.3]} 27. Qc1 {[%clk 0:01:46.6]} 27... Nf5 {[%clk 0:01:38.1]} 28.
Bxf5 {[%clk 0:01:45]} 28... exf5 {[%clk 0:01:36.9]} 29. e6 {[%clk 0:01:39.7]}
29... fxe6 {[%clk 0:01:35.9]} 30. Ne5 {[%clk 0:01:39.3]} 30... Qe7 {[%clk
0:01:30.4]} 31. Nh3 {[%clk 0:01:28.5]} 31... Nd6 {[%clk 0:01:28.3]} 32. Nf4
{[%clk 0:01:27.7]} 32... Nc4 {[%clk 0:01:19.5]} 33. Nexg6 {[%clk 0:01:27.4]}
33... Qd6 {[%clk 0:01:08.4]} 34. Nxh5+ {[%clk 0:00:26.2]} 34... Kxg6 {[%clk
0:01:04.6]} 35. Qg5+ {[%clk 0:00:26.3]} 35... Kf7 {[%clk 0:01:04.6]} 36. Qg7+
{[%clk 0:00:26.9]} 36... Ke8 {[%clk 0:01:01.8]} 37. Qxb7 {[%clk 0:00:27.8]}
37... e5 {[%clk 0:00:50.4]} 38. Ng7+ {[%clk 0:00:26.2]} 38... Kf8 {[%clk
0:00:48]} 39. Nxf5 {[%clk 0:00:26]} 39... Qf6 {[%clk 0:00:46]} 40. Qc8+ {[%clk
0:00:23.8]} 40... Kf7 {[%clk 0:00:41.4]} 41. Qd7+ {[%clk 0:00:23.4]} 41... Kg6
{[%clk 0:00:39.2]} 42. Ne7+ {[%clk 0:00:21]} 42... Kh5 {[%clk 0:00:32.3]} 43.
Nxd5 {[%clk 0:00:20.3]} 43... Qg6 {[%clk 0:00:27.6]} 44. dxe5 {[%clk 0:00:17.4]}
44... Nxe5 {[%clk 0:00:26.9]} 45. Nf4+ {[%clk 0:00:17.3]} 45... Kh6 {[%clk
0:00:20.3]} 46. Nxg6 {[%clk 0:00:17]} 46... Nxd7 {[%clk 0:00:19.7]} 47. Ne7
{[%clk 0:00:17]} 47... Nb6 {[%clk 0:00:19.3]} 48. Nc6 {[%clk 0:00:15.7]} 48...
Nc4 {[%clk 0:00:19.5]} 49. Nb8 {[%clk 0:00:15.8]} 49... Nxa3 {[%clk 0:00:19.5]}
50. Nxa6 {[%clk 0:00:16.3]} 50... Nc2 {[%clk 0:00:19.7]} 51. Nc7 {[%clk
0:00:16.9]} 51... Nxb4 {[%clk 0:00:18.9]} 52. Nxb5 {[%clk 0:00:17.8]} 52... Nd3
{[%clk 0:00:18.7]} 53. g3 {[%clk 0:00:17.7]} 53... Kh5 {[%clk 0:00:19.1]} 54.
Kg2 {[%clk 0:00:18.1]} 54... Ne1+ {[%clk 0:00:16.9]} 55. Kh3 {[%clk 0:00:17.5]}
55... Nf3 {[%clk 0:00:15.4]} 56. g4+ {[%clk 0:00:17.7]} 56... Kh6 {[%clk
0:00:15.6]} 57. Kg3 {[%clk 0:00:17.3]} 57... Ng1 {[%clk 0:00:15.4]} 58. Nd4
{[%clk 0:00:16]} 58... Kg6 {[%clk 0:00:13.2]} 59. Kg2 {[%clk 0:00:16]} 1-0

[Event "Early-Titled-Tuesday-Blitz-September-12-2023"]
[Site "Chess.com"]
[Date "2023.09.12"]
[Round "6"]
[White "nss13"]
[Black "Arteler"]
[Result "1/2-1/2"]
[WhiteElo "2547"]
[BlackElo "2428"]
[TimeControl "180+1"]
[EndTime "9:07:22 PDT"]
[Termination "Game drawn by stalemate"]

1. e4 {[%clk 0:02:59.6]} 1... e6 {[%clk 0:02:56.2]} 2. d4 {[%clk 0:02:59.5]}
2... d5 {[%clk 0:02:56.6]} 3. Nd2 {[%clk 0:03:00.2]} 3... Nf6 {[%clk 0:02:56.5]}
4. e5 {[%clk 0:02:59.9]} 4... Nfd7 {[%clk 0:02:57.3]} 5. Bd3 {[%clk 0:03:00.3]}
5... c5 {[%clk 0:02:57.8]} 6. c3 {[%clk 0:03:00.7]} 6... Nc6 {[%clk 0:02:58.7]}
7. Ne2 {[%clk 0:03:00.7]} 7... cxd4 {[%clk 0:02:59.2]} 8. cxd4 {[%clk
0:03:01.6]} 8... f6 {[%clk 0:03:00.1]} 9. exf6 {[%clk 0:03:01.2]} 9... Nxf6
{[%clk 0:03:01]} 10. Nf3 {[%clk 0:03:00.5]} 10... Bd6 {[%clk 0:03:01.8]} 11. O-O
{[%clk 0:03:01]} 11... O-O {[%clk 0:03:02.5]} 12. Bf4 {[%clk 0:03:01.6]} 12...
Bxf4 {[%clk 0:03:03]} 13. Nxf4 {[%clk 0:03:02.5]} 13... Ne4 {[%clk 0:03:03.8]}
14. Qc1 {[%clk 0:03:02]} 14... Qf6 {[%clk 0:03:04]} 15. Ne2 {[%clk 0:02:50.7]}
15... e5 {[%clk 0:03:04.4]} 16. Bxe4 {[%clk 0:02:40]} 16... dxe4 {[%clk
0:02:55.4]} 17. Nxe5 {[%clk 0:02:40.6]} 17... Nxe5 {[%clk 0:02:52.3]} 18. dxe5
{[%clk 0:02:41.5]} 18... Qxe5 {[%clk 0:02:53.2]} 19. Qc3 {[%clk 0:02:36.6]}
19... Qb5 {[%clk 0:02:26]} 20. Ng3 {[%clk 0:02:31.2]} 20... Bf5 {[%clk
0:02:25.5]} 21. a4 {[%clk 0:02:25.3]} 21... Qb6 {[%clk 0:02:15.4]} 22. Nxf5
{[%clk 0:02:08.3]} 22... Rxf5 {[%clk 0:02:16.3]} 23. Qc4+ {[%clk 0:02:08.6]}
23... Kh8 {[%clk 0:02:17.1]} 24. Qxe4 {[%clk 0:02:09.2]} 24... Raf8 {[%clk
0:02:17.7]} 25. Qe2 {[%clk 0:02:09]} 25... h6 {[%clk 0:02:04.6]} 26. Rac1 {[%clk
0:02:07]} 26... Rf4 {[%clk 0:02:02.2]} 27. Rc4 {[%clk 0:01:49.3]} 27... Rxc4
{[%clk 0:02:02]} 28. Qxc4 {[%clk 0:01:50.2]} 28... Qxb2 {[%clk 0:02:02.8]} 29.
Qc5 {[%clk 0:01:50.8]} 29... Ra8 {[%clk 0:01:43.3]} 30. h3 {[%clk 0:01:43.1]}
30... a5 {[%clk 0:01:22]} 31. Re1 {[%clk 0:01:17.5]} 31... Qb4 {[%clk
0:01:18.8]} 32. Qxb4 {[%clk 0:01:15.2]} 32... axb4 {[%clk 0:01:19.7]} 33. Re7
{[%clk 0:01:15.6]} 33... Ra7 {[%clk 0:01:17.7]} 34. g3 {[%clk 0:01:05]} 34...
Kg8 {[%clk 0:01:17.1]} 35. Kg2 {[%clk 0:01:01.6]} 35... Kf8 {[%clk 0:01:17.4]}
36. Rc7 {[%clk 0:01:00.1]} 36... g6 {[%clk 0:00:25.1]} 37. a5 {[%clk 0:00:59.5]}
37... Ke8 {[%clk 0:00:23.1]} 38. Rc4 {[%clk 0:00:19.9]} 38... Rxa5 {[%clk
0:00:22.9]} 39. Rxb4 {[%clk 0:00:20.4]} 39... b5 {[%clk 0:00:23.7]} 40. Kf3
{[%clk 0:00:20.7]} 40... Kd7 {[%clk 0:00:23.8]} 41. Ke3 {[%clk 0:00:18.5]} 41...
Kc6 {[%clk 0:00:24.4]} 42. Rf4 {[%clk 0:00:18.2]} 42... Ra3+ {[%clk 0:00:21]}
43. Kd2 {[%clk 0:00:17.5]} 43... Ra2+ {[%clk 0:00:20.4]} 44. Kc3 {[%clk
0:00:17.6]} 44... Kc5 {[%clk 0:00:19.7]} 45. Rf6 {[%clk 0:00:16.8]} 45... g5
{[%clk 0:00:17.9]} 46. f4 {[%clk 0:00:15]} 46... Ra3+ {[%clk 0:00:17]} 47. Kb2
{[%clk 0:00:15.3]} 47... Rxg3 {[%clk 0:00:17.9]} 48. Rxh6 {[%clk 0:00:12.8]}
48... gxf4 {[%clk 0:00:18]} 49. Rf6 {[%clk 0:00:12.5]} 49... f3 {[%clk 0:00:16]}
50. h4 {[%clk 0:00:12.5]} 50... Kb4 {[%clk 0:00:16.1]} 51. Rf4+ {[%clk 0:00:12]}
51... Ka5 {[%clk 0:00:15.5]} 52. h5 {[%clk 0:00:12.6]} 52... Rh3 {[%clk
0:00:14.8]} 53. h6 {[%clk 0:00:12.8]} 53... b4 {[%clk 0:00:14.9]} 54. h7 {[%clk
0:00:10.3]} 54... Ka4 {[%clk 0:00:14.8]} 55. Rxf3 {[%clk 0:00:09.5]} 55... Rh2+
{[%clk 0:00:13.6]} 56. Kb1 {[%clk 0:00:09.4]} 56... Rxh7 {[%clk 0:00:14.5]} 57.
Rf1 {[%clk 0:00:09.9]} 57... Rh2 {[%clk 0:00:14.1]} 58. Rg1 {[%clk 0:00:10.1]}
58... Ka3 {[%clk 0:00:14.5]} 59. Rf1 {[%clk 0:00:10.7]} 59... Kb3 {[%clk
0:00:14.9]} 60. Rg1 {[%clk 0:00:11.1]} 60... Rb2+ {[%clk 0:00:15.4]} 61. Ka1
{[%clk 0:00:10.8]} 61... Ra2+ {[%clk 0:00:15.7]} 62. Kb1 {[%clk 0:00:11.2]}
62... Rb2+ {[%clk 0:00:15.6]} 63. Ka1 {[%clk 0:00:11.2]} 63... Rd2 {[%clk
0:00:16.1]} 64. Kb1 {[%clk 0:00:09.6]} 64... Kc3 {[%clk 0:00:16.6]} 65. Rg3+
{[%clk 0:00:09.6]} 65... Rd3 {[%clk 0:00:16.7]} 66. Rxd3+ {[%clk 0:00:09.1]}
66... Kxd3 {[%clk 0:00:17.6]} 67. Kb2 {[%clk 0:00:09.8]} 67... Kc4 {[%clk
0:00:18.3]} 68. Kc2 {[%clk 0:00:10.1]} 68... Kb5 {[%clk 0:00:18.9]} 69. Kb3
{[%clk 0:00:10.4]} 69... Kc5 {[%clk 0:00:19.4]} 70. Kb2 {[%clk 0:00:10.8]} 70...
Kc4 {[%clk 0:00:20.3]} 71. Kc2 {[%clk 0:00:11.4]} 71... b3+ {[%clk 0:00:21.1]}
72. Kb2 {[%clk 0:00:12]} 72... Kb4 {[%clk 0:00:22]} 73. Kb1 {[%clk 0:00:12.6]}
73... Ka4 {[%clk 0:00:22.9]} 74. Kb2 {[%clk 0:00:12.9]} 74... Kb4 {[%clk
0:00:23.6]} 75. Kb1 {[%clk 0:00:13.6]} 75... Kc3 {[%clk 0:00:24.5]} 76. Kc1
{[%clk 0:00:14.1]} 76... b2+ {[%clk 0:00:25.3]} 77. Kb1 {[%clk 0:00:14.3]} 77...
Kb3 {[%clk 0:00:26.2]} 1/2-1/2

[Event "Early-Titled-Tuesday-Blitz-September-12-2023"]
[Site "Chess.com"]
[Date "2023.09.12"]
[Round "6"]
[White "Roman_Ovetchkin"]
[Black "fen_fire"]
[Result "1/2-1/2"]
[WhiteElo "2640"]
[BlackElo "2489"]
[TimeControl "180+1"]
[EndTime "9:07:30 PDT"]
[Termination "Game drawn by repetition"]

1. d4 {[%clk 0:03:00]} 1... c6 {[%clk 0:03:00]} 2. c4 {[%clk 0:02:59.3]} 2... d6
{[%clk 0:03:00.1]} 3. Nf3 {[%clk 0:02:57.1]} 3... Nd7 {[%clk 0:02:59.8]} 4. Nc3
{[%clk 0:02:55.1]} 4... Ngf6 {[%clk 0:02:59.8]} 5. e4 {[%clk 0:02:47.6]} 5... e5
{[%clk 0:02:59.7]} 6. Be2 {[%clk 0:02:47.6]} 6... Be7 {[%clk 0:02:59.3]} 7. O-O
{[%clk 0:02:47.1]} 7... O-O {[%clk 0:02:59.8]} 8. Re1 {[%clk 0:02:45.1]} 8...
Re8 {[%clk 0:02:59.9]} 9. Bf1 {[%clk 0:02:31]} 9... Bf8 {[%clk 0:02:59.8]} 10.
d5 {[%clk 0:02:30.7]} 10... Nc5 {[%clk 0:02:58.1]} 11. b4 {[%clk 0:02:29]} 11...
Na6 {[%clk 0:02:57.8]} 12. a3 {[%clk 0:02:27.8]} 12... Nc7 {[%clk 0:02:58.2]}
13. h3 {[%clk 0:02:20.6]} 13... a5 {[%clk 0:02:57.1]} 14. Rb1 {[%clk 0:02:20.1]}
14... axb4 {[%clk 0:02:55.9]} 15. axb4 {[%clk 0:02:21]} 15... h6 {[%clk
0:02:44.8]} 16. Be3 {[%clk 0:02:08.2]} 16... Bd7 {[%clk 0:02:39.5]} 17. b5
{[%clk 0:02:03.3]} 17... c5 {[%clk 0:02:36.4]} 18. Ra1 {[%clk 0:02:01]} 18... b6
{[%clk 0:02:34.7]} 19. Re2 {[%clk 0:01:36.9]} 19... Qe7 {[%clk 0:02:06.1]} 20.
Rea2 {[%clk 0:01:36.3]} 20... Rxa2 {[%clk 0:01:54.1]} 21. Rxa2 {[%clk
0:01:37.2]} 21... Ra8 {[%clk 0:01:54.2]} 22. Rxa8 {[%clk 0:01:36.5]} 22... Nxa8
{[%clk 0:01:55.1]} 23. Qa1 {[%clk 0:01:36.1]} 23... Qd8 {[%clk 0:01:54.3]} 24.
Qa7 {[%clk 0:01:34.9]} 24... Qc8 {[%clk 0:01:25.9]} 25. Kh2 {[%clk 0:01:29.2]}
25... Be7 {[%clk 0:01:26.3]} 26. Nd2 {[%clk 0:01:26.2]} 26... Bd8 {[%clk
0:01:26.6]} 27. Na4 {[%clk 0:01:22.8]} 27... Bc7 {[%clk 0:01:24.1]} 28. g3
{[%clk 0:01:16.2]} 28... Qb8 {[%clk 0:01:03.2]} 29. Qxb8+ {[%clk 0:01:15.4]}
29... Bxb8 {[%clk 0:01:04.1]} 30. f4 {[%clk 0:01:13.2]} 30... Ne8 {[%clk
0:00:55.6]} 31. fxe5 {[%clk 0:01:09.2]} 31... dxe5 {[%clk 0:00:56.5]} 32. g4
{[%clk 0:01:07.4]} 32... f6 {[%clk 0:00:53.3]} 33. Kg3 {[%clk 0:01:05]} 33...
Nd6 {[%clk 0:00:53.7]} 34. Bd3 {[%clk 0:01:04.7]} 34... Ba7 {[%clk 0:00:53.2]}
35. Nf1 {[%clk 0:01:02.5]} 35... Nc7 {[%clk 0:00:53]} 36. Kf3 {[%clk 0:01:02.3]}
36... Nce8 {[%clk 0:00:50.7]} 37. Ng3 {[%clk 0:01:02.8]} 37... Kh7 {[%clk
0:00:46.6]} 38. h4 {[%clk 0:01:01.6]} 38... Nc8 {[%clk 0:00:44.7]} 39. g5 {[%clk
0:00:52.8]} 39... hxg5 {[%clk 0:00:41.7]} 40. hxg5 {[%clk 0:00:53.7]} 40... Kg6
{[%clk 0:00:41.4]} 41. gxf6 {[%clk 0:00:52.3]} 41... gxf6 {[%clk 0:00:42.3]} 42.
Be2 {[%clk 0:00:45.1]} 42... Bb8 {[%clk 0:00:38.6]} 43. Kf2 {[%clk 0:00:43.6]}
43... Ng7 {[%clk 0:00:39.2]} 44. Bf3 {[%clk 0:00:37.7]} 44... Bc7 {[%clk
0:00:39]} 45. Nf1 {[%clk 0:00:28.7]} 45... Nd6 {[%clk 0:00:39.4]} 46. Nd2 {[%clk
0:00:28.7]} 46... f5 {[%clk 0:00:37.9]} 47. exf5+ {[%clk 0:00:26.4]} 47... Ngxf5
{[%clk 0:00:38.8]} 48. Bg4 {[%clk 0:00:20.5]} 48... Nxe3 {[%clk 0:00:34.9]} 49.
Bxd7 {[%clk 0:00:20.3]} 49... Nexc4 {[%clk 0:00:35.5]} 50. Nxc4 {[%clk
0:00:19.2]} 50... Nxc4 {[%clk 0:00:36.4]} 51. Kf3 {[%clk 0:00:17.5]} 51... Nd6
{[%clk 0:00:35.1]} 52. Nb2 {[%clk 0:00:14.3]} 52... c4 {[%clk 0:00:33.3]} 53.
Nd1 {[%clk 0:00:14.2]} 53... Bd8 {[%clk 0:00:30.9]} 54. Nc3 {[%clk 0:00:13.6]}
54... Bg5 {[%clk 0:00:11.1]} 55. Ne4 {[%clk 0:00:10.8]} 55... Nxe4 {[%clk
0:00:10.9]} 56. Kxe4 {[%clk 0:00:10.7]} 56... c3 {[%clk 0:00:11.4]} 57. Kd3
{[%clk 0:00:09.1]} 57... Bd2 {[%clk 0:00:09.6]} 58. d6 {[%clk 0:00:08.9]} 58...
Kf6 {[%clk 0:00:09.4]} 59. Bg4 {[%clk 0:00:08.2]} 59... e4+ {[%clk 0:00:09.2]}
60. Kc2 {[%clk 0:00:08]} 60... Bf4 {[%clk 0:00:07.3]} 61. d7 {[%clk 0:00:07.5]}
61... Ke7 {[%clk 0:00:06.6]} 62. Kxc3 {[%clk 0:00:07.2]} 62... Kd8 {[%clk
0:00:05.8]} 63. Kd4 {[%clk 0:00:07.4]} 63... Bh2 {[%clk 0:00:05.5]} 64. Kxe4
{[%clk 0:00:07.3]} 64... Bg1 {[%clk 0:00:06.2]} 65. Kd5 {[%clk 0:00:07.4]} 65...
Bc5 {[%clk 0:00:07.1]} 66. Kc6 {[%clk 0:00:07.7]} 66... Bg1 {[%clk 0:00:08]} 67.
Bh3 {[%clk 0:00:08]} 67... Bc5 {[%clk 0:00:08.9]} 68. Bg4 {[%clk 0:00:08.7]}
68... Bg1 {[%clk 0:00:06.2]} 69. Bh3 {[%clk 0:00:09.6]} 69... Bc5 {[%clk
0:00:06.3]} 70. Bg4 {[%clk 0:00:07.4]} 1/2-1/2

[Event "Early-Titled-Tuesday-Blitz-September-12-2023"]
[Site "Chess.com"]
[Date "2023.09.12"]
[Round "6"]
[White "FGHSMN"]
[Black "LevonAronian"]
[Result "0-1"]
[WhiteElo "2902"]
[BlackElo "3043"]
[TimeControl "180+1"]
[EndTime "9:07:31 PDT"]
[Termination "LevonAronian won by resignation"]

1. e4 {[%clk 0:02:59.9]} 1... c5 {[%clk 0:02:59.7]} 2. Nf3 {[%clk 0:03:00.3]}
2... e6 {[%clk 0:03:00.3]} 3. d4 {[%clk 0:03:00.7]} 3... cxd4 {[%clk 0:03:00.8]}
4. Nxd4 {[%clk 0:03:01.6]} 4... Nc6 {[%clk 0:03:01.3]} 5. Nc3 {[%clk 0:03:02.1]}
5... Qc7 {[%clk 0:03:01.8]} 6. Be3 {[%clk 0:03:01.2]} 6... a6 {[%clk 0:03:01.7]}
7. g4 {[%clk 0:03:01.1]} 7... h6 {[%clk 0:03:00]} 8. Qd2 {[%clk 0:02:51.1]} 8...
Nf6 {[%clk 0:02:59.1]} 9. f3 {[%clk 0:02:47.5]} 9... Ne5 {[%clk 0:02:54.3]} 10.
O-O-O {[%clk 0:02:44.4]} 10... Bb4 {[%clk 0:02:53.9]} 11. h3 {[%clk 0:02:38.8]}
11... d5 {[%clk 0:02:51.4]} 12. Bf4 {[%clk 0:02:05.7]} 12... dxe4 {[%clk
0:02:50.2]} 13. Bxe5 {[%clk 0:01:58.9]} 13... Qxe5 {[%clk 0:02:36.6]} 14. Nc6
{[%clk 0:01:57.2]} 14... Qd6 {[%clk 0:02:13.8]} 15. Qxd6 {[%clk 0:01:24.1]}
15... Bxd6 {[%clk 0:02:12.5]} 16. Rxd6 {[%clk 0:01:25]} 16... bxc6 {[%clk
0:02:11.4]} 17. fxe4 {[%clk 0:01:19.6]} 17... Bb7 {[%clk 0:02:04.5]} 18. Bg2
{[%clk 0:00:40.2]} 18... Nd7 {[%clk 0:02:03.3]} 19. Rhd1 {[%clk 0:00:39.3]}
19... O-O-O {[%clk 0:02:03]} 20. Na4 {[%clk 0:00:37.4]} 20... Kc7 {[%clk
0:01:53.4]} 21. R6d2 {[%clk 0:00:34.2]} 21... c5 {[%clk 0:01:48.4]} 22. Bf1
{[%clk 0:00:25.8]} 22... Bc6 {[%clk 0:01:39.6]} 23. Nc3 {[%clk 0:00:25.6]} 23...
Ra8 {[%clk 0:01:34.7]} 24. a4 {[%clk 0:00:19.1]} 24... Ne5 {[%clk 0:01:33.3]}
25. a5 {[%clk 0:00:18.8]} 25... Rhb8 {[%clk 0:01:16.9]} 26. b3 {[%clk
0:00:18.7]} 26... Rb4 {[%clk 0:01:10.2]} 27. Rd6 {[%clk 0:00:18.4]} 27... Nf3
{[%clk 0:00:38]} 28. Na2 {[%clk 0:00:18.2]} 28... Rd4 {[%clk 0:00:24.1]} 29.
R6xd4 {[%clk 0:00:17.6]} 29... Nxd4 {[%clk 0:00:24.7]} 30. Nc3 {[%clk
0:00:17.3]} 30... Nf3 {[%clk 0:00:21.7]} 31. Bd3 {[%clk 0:00:17.5]} 31... Ne5
{[%clk 0:00:20]} 32. Kd2 {[%clk 0:00:15.8]} 32... Rd8 {[%clk 0:00:16.3]} 33. Ke3
{[%clk 0:00:16.4]} 33... Bb7 {[%clk 0:00:16.4]} 34. Rf1 {[%clk 0:00:15.4]} 34...
f6 {[%clk 0:00:13.9]} 35. Na4 {[%clk 0:00:15.8]} 35... Kc6 {[%clk 0:00:12.3]}
36. Nb2 {[%clk 0:00:15.9]} 36... Kc7 {[%clk 0:00:09.3]} 37. Nc4 {[%clk
0:00:16.3]} 37... Nc6 {[%clk 0:00:09.2]} 38. e5 {[%clk 0:00:15.8]} 38... Nxe5
{[%clk 0:00:07.4]} 39. Nxe5 {[%clk 0:00:16]} 39... fxe5 {[%clk 0:00:08.3]} 40.
Rf7+ {[%clk 0:00:15.9]} 40... Rd7 {[%clk 0:00:08.4]} 41. Rf8 {[%clk 0:00:13.7]}
41... Kd6 {[%clk 0:00:08.2]} 42. Rb8 {[%clk 0:00:12.8]} 42... Kc7 {[%clk
0:00:08]} 43. Re8 {[%clk 0:00:12.3]} 43... Kd6 {[%clk 0:00:08.5]} 44. Bc4 {[%clk
0:00:12.6]} 44... Bd5 {[%clk 0:00:08]} 45. Bxa6 {[%clk 0:00:12.5]} 45... Ra7
{[%clk 0:00:08.2]} 46. Bd3 {[%clk 0:00:10.5]} 46... Rxa5 {[%clk 0:00:08.3]} 47.
Rg8 {[%clk 0:00:11.1]} 47... Ra7 {[%clk 0:00:07.7]} 48. c4 {[%clk 0:00:11.1]}
48... Bc6 {[%clk 0:00:08]} 49. Be4 {[%clk 0:00:09.7]} 49... Rb7 {[%clk
0:00:04.9]} 50. Bxc6 {[%clk 0:00:09.1]} 50... Kxc6 {[%clk 0:00:05.3]} 51. Ke4
{[%clk 0:00:10]} 51... Rxb3 {[%clk 0:00:03.8]} 52. Rxg7 {[%clk 0:00:10.6]} 52...
Rxh3 {[%clk 0:00:03.6]} 53. Kxe5 {[%clk 0:00:10.6]} 53... Re3+ {[%clk
0:00:02.8]} 54. Kf4 {[%clk 0:00:10.6]} 54... Rc3 {[%clk 0:00:03.2]} 55. Rg6
{[%clk 0:00:06.5]} 55... Rxc4+ {[%clk 0:00:02.1]} 56. Kg3 {[%clk 0:00:07.1]}
56... Kd5 {[%clk 0:00:02.1]} 57. Rxh6 {[%clk 0:00:07.3]} 57... Rc1 {[%clk
0:00:02.6]} 58. Rh8 {[%clk 0:00:07.5]} 58... c4 {[%clk 0:00:02.9]} 59. Rd8+
{[%clk 0:00:05.2]} 59... Ke4 {[%clk 0:00:03.3]} 60. Kh4 {[%clk 0:00:03.3]} 60...
c3 {[%clk 0:00:03.3]} 61. Rc8 {[%clk 0:00:04.1]} 61... c2 {[%clk 0:00:03.2]} 62.
Kg5 {[%clk 0:00:02.5]} 62... e5 {[%clk 0:00:03.6]} 63. Kg6 {[%clk 0:00:01.6]}
63... Kd3 {[%clk 0:00:03.6]} 64. g5 {[%clk 0:00:02.3]} 64... Rf1 {[%clk
0:00:03.4]} 65. Rd8+ {[%clk 0:00:01.8]} 65... Ke4 {[%clk 0:00:03.9]} 66. Rc8
{[%clk 0:00:02.5]} 66... c1=Q {[%clk 0:00:04.2]} 0-1